bitfinex/quotes_BTCUSD_20220303
["timestamp","ask_amount","ask_price","bid_price","bid_amount"]
[1646335114346,0.0473,42423.0,42408.0,0.3]
[1646335114647,0.025,42420.0,42408.0,0.3]
[1646335114852,0.22421277,42421.0,42404.0,0.32407584]
[1646335114853,0.19974886,42418.0,42404.0,0.32407584]
[1646335115048,0.08650767,42418.0,42408.0,0.006]
[1646335115947,0.16927201,42414.0,42408.0,0.306]
[1646335116147,0.08650767,42418.0,42408.0,0.306]
[1646335116347,0.08650767,42418.0,42410.0,0.14981437]
[1646335116547,0.08650767,42418.0,42411.0,0.3]
[1646335117048,0.1753758,42417.0,42411.0,0.3]
[1646335117251,0.08650767,42418.0,42411.0,0.3]
[1646335118105,0.08650767,42418.0,42410.0,0.14981437]
[1646335118506,0.08650767,42418.0,42411.0,0.3]
[1646335119109,0.0560086,42408.0,42405.0,0.006]
[1646335119307,0.0473,42413.0,42405.0,0.006]
[1646335120307,0.0473,42413.0,42404.0,0.15013825]
[1646335120507,0.0473,42413.0,42405.0,0.3]
[1646335121849,0.0473,42413.0,42405.0,0.29988256]
[1646335122047,0.10049617,42411.0,42405.0,0.29988256]
[1646335122451,0.10049617,42411.0,42405.0,0.44969693]
[1646335123047,0.10049617,42411.0,42405.0,0.45469693]
[1646335123952,0.0473,42417.0,42405.0,0.45469693]
[1646335124151,0.0473,42420.0,42405.0,0.44969693]
[1646335124951,0.0473,42420.0,42405.0,0.45569693]
[1646335124952,0.16232489,42416.0,42405.0,0.45569693]
[1646335125154,0.16232489,42416.0,42405.0,0.51467942]
[1646335125599,0.05360356,42419.0,42405.0,0.51467942]
[1646335126096,0.1407783,42420.0,42405.0,0.51467942]
[1646335126297,0.1407783,42420.0,42405.0,0.50867942]
[1646335126697,0.0934783,42420.0,42410.0,0.20879163]
[1646335126896,0.26230596,42420.0,42411.0,0.3]
[1646335127701,0.17609954,42417.0,42411.0,0.3]
[1646335127897,0.26230596,42420.0,42411.0,0.3]
[1646335128098,0.26255596,42420.0,42411.0,0.3]
[1646335128998,0.26255596,42420.0,42411.0,0.307]
[1646335130251,0.0937283,42420.0,42411.0,0.3]
[1646335131048,0.0937283,42420.0,42411.0,0.306]
[1646335131250,0.17013673,42419.0,42411.0,0.306]
[1646335131748,0.0937283,42420.0,42411.0,0.306]
[1646335131953,0.00025,42420.0,42411.0,0.306]
[1646335132152,0.00025,42420.0,42415.0,0.20878683]
[1646335132349,0.00025,42420.0,42416.0,0.3]
[1646335132951,0.00025,42420.0,42416.0,0.306]
[1646335134011,0.00025,42420.0,42418.0,0.14981437]
[1646335134816,0.00025,42420.0,42419.0,0.3]
[1646335135015,0.00025,42420.0,42419.0,0.660986]
[1646335136016,0.00025,42420.0,42419.0,0.32361]
[1646335136214,0.00025,42420.0,42419.0,0.684596]
[1646335137056,0.00025,42420.0,42419.0,0.691596]
[1646335138358,0.00025,42420.0,42419.0,0.684596]
[1646335139255,0.00025,42420.0,42419.0,0.660986]
[1646335139460,0.00025,42420.0,42419.0,0.3]
[1646335139658,0.00025,42420.0,42419.0,0.660986]
[1646335143006,0.00025,42420.0,42419.0,0.666986]
[1646335143806,0.07925,42421.0,42420.0,0.360986]
[1646335144004,0.07925,42421.0,42420.0,0.660986]
[1646335145051,0.07925,42421.0,42420.0,0.666986]
[1646335145654,0.07925,42421.0,42420.0,1.409396]
[1646335146252,0.05,42428.0,42421.0,0.25]
[1646335146457,0.05,42434.0,42427.0,0.14981437]
[1646335146655,0.00050127,42436.0,42433.0,0.14981437]
[1646335146954,0.00150381,42436.0,42433.0,0.14981437]
[1646335147354,0.00100254,42436.0,42433.0,0.14981437]
[1646335147554,0.09657621,42438.0,42433.0,0.14981437]
[1646335147754,0.0011,42438.0,42434.0,0.660986]
[1646335147955,0.00012534,42437.0,42434.0,0.3]
[1646335148208,0.00037602,42437.0,42436.0,0.14981437]
[1646335148602,0.00037602,42437.0,42436.0,0.44981437]
[1646335148803,0.00025068,42437.0,42436.0,0.44981437]
[1646335149106,0.0011,42438.0,42436.0,0.45481437]
[1646335149306,0.00012534,42439.0,42437.0,0.3]
[1646335149504,0.00012534,42439.0,42438.0,0.360986]
[1646335149704,0.00012534,42439.0,42438.0,0.3]
[1646335149905,0.00012534,42439.0,42438.0,0.360986]
[1646335150106,0.00012534,42439.0,42437.0,0.3]
[1646335150308,0.00075068,42441.0,42437.0,0.3]
[1646335150605,0.00075068,42441.0,42440.0,0.14981437]
[1646335153155,0.16201145,42441.0,42440.0,0.14981437]
[1646335153756,0.22380884,42441.0,42440.0,0.14981437]
[1646335153957,0.22380884,42441.0,42435.0,0.1265]
[1646335154156,0.22380884,42441.0,42435.0,0.007]
[1646335154356,0.22380884,42441.0,42434.0,0.14981437]
[1646335154556,0.22397171,42441.0,42434.0,0.14981437]
[1646335154761,0.22397171,42441.0,42427.0,0.3]
[1646335154762,0.22413458,42441.0,42427.0,0.3]
[1646335154958,0.22413458,42441.0,42426.0,0.1152]
[1646335154959,0.18613821,42431.0,42426.0,0.1152]
[1646335155159,0.0676004,42432.0,42429.0,0.004]
[1646335155357,0.0676004,42432.0,42429.0,0.15381437]
[1646335156404,0.0676004,42432.0,42422.0,0.18305794]
[1646335156605,0.09103088,42430.0,42426.0,0.14981437]
[1646335156806,0.0676004,42432.0,42426.0,0.14981437]
[1646335157306,0.1694494,42432.0,42426.0,0.14981437]
[1646335157504,0.1694494,42432.0,42423.0,0.44981437]
[1646335157705,0.1694494,42432.0,42423.0,0.14981437]
[1646335158506,0.2167494,42432.0,42423.0,0.14981437]
[1646335158711,0.09534545,42427.0,42423.0,0.14981437]
[1646335159209,0.2167494,42432.0,42423.0,0.14981437]
[1646335160052,0.4022389,42432.0,42423.0,0.14981437]
[1646335160253,0.50246294,42432.0,42423.0,0.14981437]
[1646335160454,0.33301354,42432.0,42423.0,0.14981437]
[1646335161053,0.33301354,42432.0,42423.0,0.15581437]
[1646335161258,0.09410371,42425.0,42423.0,0.15581437]
[1646335161456,0.21408305,42424.0,42423.0,0.15581437]
[1646335161657,0.09410371,42425.0,42423.0,0.006]
[1646335162058,0.1672005,42424.0,42423.0,0.006]
[1646335162458,0.1672005,42424.0,42417.0,0.14981437]
[1646335162660,0.09410371,42425.0,42421.0,0.0001426]
[1646335162863,0.09410371,42425.0,42421.0,0.0002852]
[1646335163110,0.09410371,42425.0,42421.0,0.0004278]
[1646335163515,0.09410371,42425.0,42421.0,0.0002852]
[1646335163516,0.0473,42424.0,42421.0,0.0002852]
[1646335163713,0.22397066,42424.0,42421.0,0.0001426]
[1646335163916,0.22397066,42424.0,42417.0,0.008]
[1646335164110,0.22397066,42424.0,42420.0,0.0001426]
[1646335164311,0.22397066,42424.0,42420.0,0.0002852]
[1646335164511,0.22397066,42424.0,42420.0,0.0004278]
[1646335165116,0.22597066,42424.0,42420.0,0.0001426]
[1646335165313,0.22597066,42424.0,42415.0,0.03134]
[1646335165514,0.22597066,42424.0,42420.0,0.0002852]
[1646335165720,0.22597066,42424.0,42420.0,0.0004278]
[1646335166418,0.22397066,42424.0,42420.0,0.0001426]
[1646335166621,0.22397066,42424.0,42420.0,7.473e-05]
[1646335166856,0.22397066,42424.0,42420.0,0.00014946]
[1646335167054,0.22397066,42424.0,42420.0,0.00022419]
[1646335167254,0.22397066,42424.0,42420.0,0.00422419]
[1646335167658,0.22397066,42424.0,42420.0,0.00407473]
[1646335167857,0.18486931,42422.0,42420.0,0.004]
[1646335168058,0.0473,42424.0,42420.0,0.00407473]
[1646335168456,0.0473,42424.0,42420.0,0.00014946]
[1646335168658,0.0473,42424.0,42420.0,0.00022419]
[1646335168855,0.0473,42424.0,42420.0,0.00014946]
[1646335169058,0.15028634,42424.0,42420.0,0.005]
[1646335169258,0.15028634,42424.0,42420.0,0.00507473]
[1646335169456,0.15028634,42424.0,42420.0,0.00514946]
[1646335169657,0.15028634,42424.0,42420.0,0.00522419]
[1646335170056,0.18019182,42423.0,42420.0,0.00514946]
[1646335170256,0.18019182,42423.0,42420.0,0.005]
[1646335170458,0.18019182,42423.0,42420.0,0.00012046]
[1646335170704,0.09059735,42422.0,42420.0,0.00012046]
[1646335170903,0.09059735,42422.0,42420.0,0.00036138]
[1646335171103,0.09059735,42422.0,42420.0,0.00236138]
[1646335171506,0.09059735,42422.0,42420.0,0.002]
[1646335172508,0.17529559,42416.0,42414.0,0.14981437]
[1646335172906,0.09059735,42422.0,42414.0,0.14981437]
[1646335173109,0.09618516,42415.0,42414.0,0.008]
[1646335173308,0.09618516,42415.0,42414.0,0.00789989]
[1646335174559,0.09618516,42415.0,42412.0,8.918e-05]
[1646335174759,0.09618516,42415.0,42412.0,0.00026754]
[1646335175161,0.1630373,42419.0,42412.0,0.00726754]
[1646335175360,0.1181,42422.0,42412.0,0.00708918]
[1646335175562,0.0473,42424.0,42412.0,0.007]
[1646335175760,0.0473,42424.0,42413.0,8.918e-05]
[1646335175962,0.0473,42424.0,42413.0,0.00017836]
[1646335176161,0.08726886,42421.0,42413.0,0.00026754]
[1646335176561,0.21254812,42420.0,42413.0,0.00026754]
[1646335176759,0.21254812,42420.0,42413.0,8.918e-05]
[1646335176964,0.21254812,42420.0,42410.0,0.14981437]
[1646335177161,0.21254812,42420.0,42414.0,8.917e-05]
[1646335177363,0.19703237,42420.0,42414.0,0.00026751]
[1646335177970,0.19703237,42420.0,42414.0,0.00017834]
[1646335178220,0.19703237,42420.0,42413.0,0.006]
[1646335178420,0.19703237,42420.0,42415.0,0.00010863]
[1646335178621,0.08726886,42421.0,42415.0,0.00021726]
[1646335178820,0.08726886,42421.0,42415.0,0.00032589]
[1646335179220,0.08726886,42421.0,42415.0,0.00621726]
[1646335179421,0.08726886,42421.0,42415.0,0.00610863]
[1646335179729,0.28993359,42421.0,42416.0,0.00010863]
[1646335179921,0.28993359,42421.0,42416.0,0.00021726]
[1646335180220,0.08726886,42421.0,42416.0,0.00032589]
[1646335180623,0.08726886,42421.0,42416.0,0.00021726]
[1646335180821,0.08726886,42421.0,42415.0,0.006]
[1646335181021,0.08726886,42421.0,42416.0,0.00011982]
[1646335181222,0.08726886,42421.0,42416.0,0.00023964]
[1646335181423,0.08726886,42421.0,42416.0,0.00035946]
[1646335181633,0.18067838,42419.0,42416.0,0.00035946]
[1646335181853,0.08726886,42421.0,42416.0,0.00023964]
[1646335182055,0.08726886,42421.0,42416.0,0.00011982]
[1646335182263,0.08726886,42421.0,42411.0,0.005]
[1646335182458,0.08726886,42421.0,42415.0,0.00013311]
[1646335182757,0.08726886,42421.0,42415.0,0.00026622]
[1646335182960,0.18419386,42419.0,42415.0,0.00039933]
[1646335183158,0.18419386,42419.0,42415.0,0.00026622]
[1646335183358,0.18419386,42419.0,42415.0,0.00013311]
[1646335183557,0.18419386,42419.0,42410.0,0.15581437]
[1646335183757,0.18419386,42419.0,42415.0,0.00013311]
[1646335183959,0.18419386,42419.0,42415.0,0.00039933]
[1646335184357,0.09958453,42421.0,42415.0,0.00039933]
[1646335184561,0.09958453,42421.0,42415.0,0.00026622]
[1646335184760,0.09958453,42421.0,42415.0,0.00013311]
[1646335184958,0.09958453,42421.0,42416.0,0.00012902]
[1646335185160,0.01231567,42421.0,42416.0,0.00012902]
[1646335185359,0.01231567,42421.0,42416.0,0.00025804]
[1646335185608,0.01231567,42421.0,42416.0,0.00038706]
[1646335185807,0.01231567,42421.0,42416.0,0.00025804]
[1646335186008,0.01231567,42421.0,42416.0,0.00012902]
[1646335186210,0.01231567,42421.0,42415.0,0.006]
[1646335186411,0.01231567,42421.0,42416.0,7.721e-05]
[1646335186608,0.01231567,42421.0,42416.0,0.00015442]
[1646335186808,0.01231567,42421.0,42416.0,0.00023163]
[1646335187210,0.01231567,42421.0,42416.0,0.00723163]
[1646335187412,0.01231567,42421.0,42416.0,0.00715442]
[1646335187612,0.01231567,42421.0,42417.0,0.14981437]
[1646335189113,0.01231567,42421.0,42417.0,0.14994088]
[1646335189355,0.01231567,42421.0,42417.0,0.1501939]
[1646335189960,0.01231567,42421.0,42417.0,0.15006739]
[1646335190157,0.01231567,42421.0,42417.0,0.14994088]
[1646335190560,0.01231567,42421.0,42417.0,0.15006739]
[1646335190756,0.01231567,42421.0,42417.0,0.1501939]
[1646335191458,0.01231567,42421.0,42417.0,0.14981437]
[1646335191756,0.01231567,42421.0,42417.0,0.15006739]
[1646335191956,0.01231567,42421.0,42417.0,0.1501939]
[1646335192359,0.01231567,42421.0,42418.0,0.360986]
[1646335192563,0.01231567,42421.0,42420.0,0.14981437]
[1646335192759,0.05,42429.0,42420.0,0.79293646]
[1646335192959,0.00065081,42438.0,42421.0,0.360986]
[1646335193207,0.00195243,42438.0,42421.0,0.360986]
[1646335193508,0.17879273,42431.0,42421.0,0.360986]
[1646335194107,0.19509026,42436.0,42424.0,0.14981437]
[1646335194306,0.19509026,42436.0,42424.0,0.14970944]
[1646335194505,0.18283389,42433.0,42424.0,0.14970944]
[1646335195108,0.20672607,42429.0,42424.0,0.14970944]
[1646335195307,0.20672607,42429.0,42424.0,0.15770944]
[1646335195505,0.10050629,42431.0,42424.0,0.15770944]
[1646335196407,0.10050629,42431.0,42424.0,0.14970944]
[1646335196608,0.19588952,42430.0,42424.0,0.14970944]
[1646335197261,0.19588952,42430.0,42424.0,0.15770944]
[1646335198461,0.10050629,42431.0,42424.0,0.14970944]
[1646335199260,0.10050629,42431.0,42424.0,0.15670944]
[1646335199462,0.21090744,42430.0,42424.0,0.15670944]
[1646335199762,0.42946718,42430.0,42424.0,0.15670944]
[1646335199964,0.21090744,42430.0,42424.0,0.15670944]
[1646335200167,0.10050629,42431.0,42424.0,0.15670944]
[1646335200608,0.10050629,42431.0,42424.0,0.14970944]
[1646335200809,0.10050629,42431.0,42421.0,0.05895838]
[1646335201011,0.47712678,42430.0,42421.0,0.0001331]
[1646335201213,0.33898475,42423.0,42421.0,0.0001331]
[1646335201416,0.33898475,42423.0,42421.0,0.0002662]
[1646335201417,0.3473,42422.0,42421.0,0.0002662]
[1646335201610,0.3473,42422.0,42421.0,0.0003993]
[1646335201912,0.33217136,42422.0,42421.0,0.0002662]
[1646335202109,0.33217136,42422.0,42419.0,0.007]
[1646335202311,0.13602883,42420.0,42419.0,0.00713309]
[1646335202510,0.13602883,42420.0,42419.0,0.00013309]
[1646335202511,0.18332883,42420.0,42419.0,0.00013309]
[1646335202715,0.18332883,42420.0,42419.0,0.00026618]
[1646335202716,0.15114216,42420.0,42419.0,0.00026618]
[1646335202912,0.15114216,42420.0,42419.0,0.00039927]
[1646335203112,0.15114093,42420.0,42419.0,0.00039927]
[1646335203312,0.15114093,42420.0,42419.0,0.00026618]
[1646335203313,0.15113603,42420.0,42419.0,0.00026618]
[1646335203512,0.15113603,42420.0,42419.0,0.00013309]
[1646335203711,0.24463693,42420.0,42417.0,0.00015844]
[1646335203913,0.1408009,42420.0,42417.0,0.00015844]
[1646335204111,0.1408009,42420.0,42417.0,0.00031688]
[1646335204364,0.1408009,42420.0,42417.0,0.00047532]
[1646335204559,0.1408009,42420.0,42417.0,0.00031688]
[1646335204759,0.32247673,42420.0,42417.0,0.00015844]
[1646335205059,0.21012977,42418.0,42416.0,0.00015845]
[1646335205263,0.0935009,42420.0,42417.0,0.006]
[1646335205664,0.0473,42424.0,42417.0,0.006]
[1646335205861,0.01231582,42426.0,42417.0,0.15570944]
[1646335206060,0.01231582,42426.0,42418.0,0.360986]
[1646335206259,0.01231582,42426.0,42421.0,1.7513706]
[1646335206460,0.05,42429.0,42419.0,7.458e-05]
[1646335206660,0.09791389,42427.0,42419.0,0.00014916]
[1646335207059,0.09791389,42427.0,42419.0,0.00010076]
[1646335207460,0.16216822,42426.0,42419.0,0.00010076]
[1646335207868,0.3,42425.0,42414.0,0.008]
[1646335208114,0.09589114,42418.0,42414.0,0.008]
[1646335208308,0.3,42425.0,42414.0,0.008]
[1646335208505,0.16036832,42420.0,42416.0,0.14970944]
[1646335208708,0.1201,42426.0,42410.0,0.01178]
[1646335209107,0.218841,42419.0,42412.0,0.14970944]
[1646335209308,0.1201,42426.0,42413.0,0.360986]
[1646335209610,0.08915815,42416.0,42412.0,0.14970944]
[1646335210009,0.08915815,42416.0,42410.0,0.008]
[1646335210010,0.3,42415.0,42410.0,0.008]
[1646335210209,0.13645815,42416.0,42410.0,0.008]
[1646335210412,0.18436963,42412.0,42410.0,0.008]
[1646335210609,0.13645815,42416.0,42411.0,0.00016226]
[1646335211009,0.0473,42416.0,42411.0,0.00032452]
[1646335211210,0.0473,42416.0,42411.0,0.00048678]
[1646335211611,0.0473,42416.0,42411.0,0.00032452]
[1646335211863,0.0473,42416.0,42408.0,0.14970944]
[1646335212967,0.08639353,42411.0,42408.0,0.14970944]
[1646335213367,0.16258542,42410.0,42408.0,0.006]
[1646335213765,0.192782,42409.0,42408.0,0.006]
[1646335214566,0.20988542,42410.0,42408.0,0.006]
[1646335215167,0.20988542,42410.0,42400.0,0.00049461]
[1646335215469,0.0473,42410.0,42408.0,0.004]
[1646335216312,0.19741633,42409.0,42408.0,0.004]
[1646335216514,0.19741633,42409.0,42406.0,0.14970944]
[1646335216911,0.18019584,42408.0,42406.0,0.14970944]
[1646335217112,0.19741633,42409.0,42406.0,0.14970944]
[1646335217513,0.11559535,42410.0,42406.0,0.14970944]
[1646335218517,0.19612449,42408.0,42406.0,0.14977774]
[1646335218715,0.11559535,42410.0,42406.0,0.14977774]
[1646335219119,0.3473,42409.0,42406.0,0.0001366]
[1646335219382,0.00029056,42407.0,42406.0,0.0052049]
[1646335219581,0.2633498,42407.0,42406.0,0.0051366]
[1646335219784,0.2633498,42407.0,42406.0,0.005]
[1646335219980,0.39908807,42407.0,42406.0,0.005]
[1646335220480,0.39908807,42407.0,42395.0,0.003]
[1646335220683,0.10411301,42398.0,42395.0,0.003]
[1646335221281,0.10411301,42398.0,42395.0,0.009]
[1646335221882,0.29812355,42398.0,42395.0,0.009]
[1646335222483,0.17666088,42397.0,42395.0,0.003]
[1646335223121,0.22396088,42397.0,42395.0,0.003]
[1646335223521,0.2185233,42396.0,42395.0,0.003]
[1646335223720,0.2658233,42396.0,42395.0,0.003]
[1646335223925,0.5658233,42396.0,42395.0,0.003]
[1646335224122,0.2658233,42396.0,42395.0,0.003]
[1646335224922,0.27813674,42396.0,42395.0,0.003]
[1646335225323,0.28013674,42396.0,42395.0,0.003]
[1646335226523,0.27813674,42396.0,42395.0,0.003]
[1646335227162,0.27813674,42396.0,42395.0,0.00293046]
[1646335227364,0.27813674,42396.0,42395.0,0.00593046]
[1646335228566,0.05961344,42396.0,42395.0,0.00593046]
[1646335229166,0.05961344,42396.0,42395.0,0.1556399]
[1646335229167,0.01231344,42396.0,42395.0,0.1556399]
[1646335229366,0.01231344,42396.0,42395.0,0.1586399]
[1646335229565,0.21447296,42396.0,42395.0,0.00893046]
[1646335229765,0.01231344,42396.0,42395.0,0.00893046]
[1646335230611,0.01231344,42396.0,42395.0,0.00293046]
[1646335231213,0.12130803,42396.0,42395.0,0.00293046]
[1646335231410,0.12130803,42396.0,42395.0,0.00693046]
[1646335231610,0.01231344,42396.0,42395.0,0.00693046]
[1646335232713,0.01231344,42396.0,42395.0,0.00293046]
[1646335233310,0.01231344,42396.0,42395.0,0.00793046]
[1646335234117,0.01231344,42396.0,42395.0,0.66891646]
[1646335234361,0.2028848,42407.0,42395.0,0.66891646]
[1646335234562,0.0123184,42401.0,42395.0,0.30293046]
[1646335234961,0.10639441,42405.0,42397.0,0.00011457]
[1646335235163,0.10639441,42405.0,42397.0,0.00022914]
[1646335235363,0.10639441,42405.0,42397.0,0.00034371]
[1646335235861,0.10639441,42405.0,42397.0,0.00022914]
[1646335236163,0.10639441,42405.0,42399.0,0.00011816]
[1646335236364,0.10639441,42405.0,42399.0,0.1498276]
[1646335236562,0.10639441,42405.0,42399.0,0.14994576]
[1646335236863,0.10639441,42405.0,42399.0,0.15006392]
[1646335237261,0.10639441,42405.0,42399.0,0.14994576]
[1646335237462,0.10639441,42405.0,42399.0,0.15470944]
[1646335237664,0.10639441,42405.0,42400.0,9.091e-05]
[1646335237862,0.10639441,42405.0,42400.0,0.00018182]
[1646335238115,0.10639441,42405.0,42400.0,0.00027273]
[1646335238316,0.0123184,42404.0,42400.0,0.00027273]
[1646335238515,0.0123184,42404.0,42400.0,0.00018182]
[1646335238715,0.0123184,42404.0,42399.0,0.14970944]
[1646335238918,0.0123184,42404.0,42400.0,9.091e-05]
[1646335239115,0.0123184,42404.0,42400.0,0.14989126]
[1646335239317,0.0123184,42404.0,42400.0,0.14998217]
[1646335239516,0.0123184,42404.0,42400.0,0.00027273]
[1646335239918,0.0123184,42404.0,42400.0,9.091e-05]
[1646335240115,0.0123184,42404.0,42399.0,0.005]
[1646335240315,0.0123184,42404.0,42400.0,0.00018182]
[1646335240515,0.0123184,42404.0,42400.0,0.00027273]
[1646335241119,0.0123184,42404.0,42400.0,0.00018182]
[1646335241318,0.0123184,42404.0,42400.0,9.091e-05]
[1646335241522,0.19388979,42398.0,42395.0,0.1576399]
[1646335241718,0.0123184,42404.0,42395.0,0.1576399]
[1646335241968,0.0123184,42404.0,42400.0,0.00022468]
[1646335242869,0.0123184,42404.0,42400.0,0.00011234]
[1646335243069,0.0123184,42404.0,42403.0,0.14970944]
[1646335245470,0.0123184,42404.0,42403.0,0.003]
[1646335246738,0.0123184,42404.0,42401.0,0.14982772]
[1646335247238,0.0123184,42404.0,42401.0,0.149946]
[1646335247535,0.0123184,42404.0,42401.0,0.15006428]
[1646335247834,0.0123184,42404.0,42401.0,0.149946]
[1646335248134,0.0123184,42404.0,42401.0,0.14970944]
[1646335249664,0.0123184,42404.0,42401.0,0.14962052]
[1646335250266,0.47113416,42405.0,42401.0,0.14962052]
[1646335250564,0.30113622,42405.0,42401.0,0.14962052]
[1646335250764,0.10639441,42405.0,42401.0,0.0001562]
[1646335250965,0.10639441,42405.0,42403.0,0.14962052]
[1646335251667,0.31942267,42405.0,42403.0,0.14962052]
[1646335251865,0.10639441,42405.0,42403.0,0.14962052]
[1646335252670,0.059001,42412.0,42403.0,0.14962052]
[1646335252968,0.059001,42412.0,42406.0,0.14962052]
[1646335253627,0.07371414,42411.0,42406.0,0.14962052]
[1646335253829,0.07371414,42411.0,42407.0,0.3]
[1646335253830,0.0123184,42411.0,42407.0,0.3]
[1646335254029,0.0123184,42411.0,42406.0,0.14962052]
[1646335254632,0.18871755,42409.0,42406.0,0.14962052]
[1646335254827,0.0123184,42411.0,42406.0,0.14969473]
[1646335255226,0.0793246,42411.0,42406.0,0.14976894]
[1646335255427,0.0793246,42411.0,42406.0,0.15284315]
[1646335255626,0.0123184,42411.0,42406.0,0.15284315]
[1646335255826,0.0123184,42411.0,42406.0,0.15276894]
[1646335256026,0.0123184,42411.0,42406.0,0.15262052]
[1646335256226,0.0123184,42411.0,42406.0,0.15274268]
[1646335256629,0.0123184,42411.0,42406.0,0.152987]
[1646335256870,0.0123184,42411.0,42406.0,0.149987]
[1646335257069,0.0123184,42411.0,42407.0,0.3]
[1646335257272,0.0123184,42411.0,42406.0,0.149987]
[1646335257273,0.0123184,42411.0,42406.0,0.14986484]
[1646335257469,0.0123184,42411.0,42406.0,0.15262052]
[1646335257669,0.0123184,42411.0,42407.0,0.00012216]
[1646335257870,0.0123184,42411.0,42407.0,0.00024432]
[1646335258072,0.0123184,42411.0,42407.0,0.00036648]
[1646335258477,0.0123184,42411.0,42407.0,0.00024432]
[1646335258672,0.0123184,42411.0,42407.0,0.00012216]
[1646335258869,0.0123184,42411.0,42407.0,0.30011898]
[1646335259069,0.0123184,42411.0,42407.0,0.30023796]
[1646335259269,0.0123184,42411.0,42407.0,0.30035694]
[1646335259470,0.0123184,42411.0,42407.0,0.30335694]
[1646335259671,0.0123184,42411.0,42407.0,0.30323796]
[1646335259972,0.0123184,42411.0,42407.0,0.303]
[1646335260171,0.0123184,42411.0,42407.0,0.30311502]
[1646335260371,0.0123184,42411.0,42407.0,0.30334506]
[1646335260625,0.0123184,42411.0,42407.0,0.30034506]
[1646335260926,0.0123184,42411.0,42407.0,0.00034506]
[1646335261123,0.0123184,42411.0,42407.0,0.00011502]
[1646335261329,0.0123184,42411.0,42410.0,0.14962052]
[1646335261529,0.0123184,42411.0,42410.0,0.81060652]
[1646335261726,0.05,42424.0,42410.0,0.44962052]
[1646335261928,0.06231577,42424.0,42413.0,0.14962052]
[1646335262126,0.01231577,42424.0,42414.0,0.3]
[1646335262330,0.10352233,42421.0,42408.0,0.31178]
[1646335262529,0.10352233,42421.0,42418.0,0.14962052]
[1646335263328,0.10352233,42421.0,42415.0,0.3]
[1646335263526,0.10352233,42421.0,42418.0,0.006]
[1646335264864,0.10352233,42421.0,42417.0,0.00028062]
[1646335265066,0.10352233,42421.0,42417.0,0.00018708]
[1646335265265,0.10352233,42421.0,42417.0,9.354e-05]
[1646335265467,0.10352233,42421.0,42417.0,0.00409354]
[1646335265870,0.10352233,42421.0,42417.0,0.00428062]
[1646335266268,0.10344642,42421.0,42417.0,0.00428062]
[1646335266469,0.10344642,42421.0,42417.0,0.00418708]
[1646335266669,0.10344642,42421.0,42415.0,0.14962052]
[1646335266869,0.10344642,42421.0,42417.0,0.00014143]
[1646335267069,0.10344642,42421.0,42417.0,0.00028286]
[1646335267269,0.10344642,42421.0,42417.0,0.00042429]
[1646335267572,0.10344642,42421.0,42417.0,0.00442429]
[1646335267768,0.10344642,42421.0,42417.0,0.00428286]
[1646335267970,0.1993702,42420.0,42417.0,0.00414143]
[1646335268423,0.1993702,42420.0,42417.0,0.00428286]
[1646335268616,0.0473,42419.0,42417.0,0.00442429]
[1646335268815,0.3,42418.0,42417.0,0.00442429]
[1646335269015,0.48303827,42418.0,42417.0,0.00428286]
[1646335269216,0.48303827,42418.0,42405.0,0.2288]
[1646335269415,0.3473,42418.0,42415.0,0.00014143]
[1646335269617,0.13573827,42416.0,42415.0,0.00014143]
[1646335269817,0.18303827,42416.0,42415.0,0.00042429]
[1646335270418,0.18303827,42416.0,42415.0,0.00028286]
[1646335270617,0.18303827,42416.0,42409.0,0.14962052]
[1646335270822,0.0473,42416.0,42413.0,0.00015077]
[1646335271018,0.13573827,42414.0,42413.0,0.00030154]
[1646335271218,0.13573827,42414.0,42413.0,0.00045231]
[1646335271866,0.0899849,42415.0,42413.0,0.00015077]
[1646335272066,0.0899849,42415.0,42411.0,0.00015077]
[1646335272469,0.0899849,42415.0,42411.0,0.00030154]
[1646335272673,0.0899849,42415.0,42411.0,0.00045231]
[1646335272970,0.0899849,42415.0,42411.0,0.00030154]
[1646335273168,0.0473,42419.0,42411.0,0.00015077]
[1646335273368,0.0473,42419.0,42409.0,0.14962052]
[1646335273567,0.0473,42419.0,42411.0,0.00115077]
[1646335273771,0.0473,42419.0,42411.0,0.00145231]
[1646335274168,0.11838568,42415.0,42411.0,0.00145231]
[1646335274568,0.11838568,42415.0,42411.0,0.00115077]
[1646335274768,0.11838568,42415.0,42409.0,0.14962052]
[1646335274970,0.11838568,42415.0,42411.0,0.00015226]
[1646335275369,0.11838568,42415.0,42411.0,0.00045678]
[1646335275836,0.11838568,42415.0,42411.0,0.00030452]
[1646335276038,0.11838568,42415.0,42409.0,0.15162052]
[1646335276237,0.11838568,42415.0,42411.0,0.00015226]
[1646335276437,0.11838568,42415.0,42411.0,0.00030452]
[1646335276640,0.11838568,42415.0,42411.0,0.00045678]
[1646335277239,0.17737268,42415.0,42411.0,0.00015226]
[1646335277438,0.17737268,42415.0,42411.0,7.62e-05]
[1646335277937,0.17737268,42415.0,42411.0,0.0002286]
[1646335278142,0.17737268,42415.0,42409.0,0.14761038]
[1646335278339,0.11838568,42415.0,42409.0,0.14761038]
[1646335278739,0.20607754,42410.0,42409.0,0.14761038]
[1646335278940,0.11838568,42415.0,42406.0,0.1]
[1646335279139,0.11838568,42415.0,42409.0,0.14761038]
[1646335279367,0.11838568,42415.0,42406.0,0.1]
[1646335279565,0.11938568,42415.0,42409.0,0.002]
[1646335279766,0.11938568,42415.0,42409.0,0.14961038]
[1646335280867,0.11938568,42415.0,42409.0,0.002]
[1646335281066,0.20774487,42412.0,42409.0,0.14961038]
[1646335281270,0.11838568,42415.0,42409.0,0.14777133]
[1646335281468,0.11938568,42415.0,42409.0,0.14777133]
[1646335281669,0.11938568,42415.0,42409.0,0.14793228]
[1646335281871,0.11938568,42415.0,42409.0,0.14809323]
[1646335282272,0.29894557,42415.0,42409.0,0.0003219]
[1646335282472,0.29894557,42415.0,42408.0,0.14761038]
[1646335282673,0.29294557,42415.0,42409.0,0.00016095]
[1646335282873,0.29294557,42415.0,42409.0,0.0003219]
[1646335283119,0.29294557,42415.0,42409.0,0.00048285]
[1646335283522,0.29294557,42415.0,42409.0,0.00348285]
[1646335283721,0.29294557,42415.0,42409.0,0.00316095]
[1646335283924,0.29233036,42415.0,42409.0,0.003]
[1646335284121,0.11277047,42415.0,42409.0,0.00316095]
[1646335284321,0.11277047,42415.0,42409.0,0.00348285]
[1646335284721,0.11277047,42415.0,42409.0,0.00048285]
[1646335284924,0.11277047,42415.0,42409.0,0.0003219]
[1646335285122,0.32130658,42415.0,42408.0,0.14761038]
[1646335285324,0.11277047,42415.0,42409.0,7.819e-05]
[1646335285523,0.11277047,42415.0,42409.0,0.00307819]